Cogmind - Beta 17.1 @@@ ROGUE MODE // 2026.08.30 @ 03:47:47 Player: TheSkyeDoctor Result: Destroyed by G-34 Mercenary with Small Laser Performance ------------- Evolutions (0) 0 Regions Visited (1) 200 Robots Destroyed (2) 10 Value Destroyed (50) 50 Prototype IDs (0) 0 Alien Tech Used (0) 0 Bonus (0) 0 TOTAL SCORE: 260 Bonus ------- None Cogmind --------- Core Integrity 0/250 Matter 287/300 Energy 100/100 System Corruption 2% Temperature Cool (12) Movement Core (50) Location -10/Materials Parts ------- > --- POWER (1) -------- (None) > --- PROPULSION (2) --- (None) > --- UTILITY (2) ------ (None) > --- WEAPON (2) ------- (None) > --- INVENTORY (5) ---- Ion Engine Light Ion Engine Small Storage Unit Datajack Peak State ------------ > --- POWER ------------ Ion Engine > --- PROPULSION ------- Light Treads Light Treads > --- UTILITY ---------- Small Storage Unit > --- WEAPON ----------- Assault Rifle Assault Rifle > --- INVENTORY -------- (None) [Rating: 6] Favorites ----------- Power Ion Engine Engine Ion Engine Propulsion Light Treads Treads Light Treads Utility Small Storage Unit Storage Small Storage Unit Weapon Assault Rifle Ballistic Gun Assault Rifle Build | -11 -10 ------- Run | Yrd Mat Slots Evolved . | . . Power . | . . Propulsion . | . . Utility . | . . Weapon . | . . Parts Attached 6 | 6 . Power 1 | 1 . Engine 1 | 1 . Core . | . . Reactor . | . . Propulsion 2 | 2 . Treads 2 | 2 . Leg . | . . Wheel . | . . Hover . | . . Flight . | . . Utility 1 | 1 . Device . | . . Storage 1 | 1 . Processor . | . . Hackware . | . . Protection . | . . Artifact . | . . Weapon 2 | 2 . Energy Gun . | . . Energy Cannon . | . . Ballistic Gun 2 | 2 . Ballistic Cannon . | . . Launcher . | . . Special Weapon . | . . Impact Weapon . | . . Slashing Weapon . | . . Piercing Weapon . | . . Special Melee Weapon . | . . Unidentified Prototypes . | . . Parts Lost 4 | . 4 Power . | . . Propulsion 2 | . 2 Utility . | . . Weapon 2 | . 2 Highest Loss Streak 4 | . 4 To Critical Strikes . | . . Average Backups 1 | . 1 Power . | . 1 Propulsion . | . . Utility . | . . Weapon . | . . Tool/Special . | . . Unused Backups 2 | . 2 Power 1 | . 1 Propulsion . | . . Utility . | . . Weapon . | . . Tool/Special 1 | . 1 Average Slot Usage (%) 74 | . 74 Engine 12 | . 12 Treads 24 | . 24 Storage 12 | . 12 Ballistic Gun 22 | . 22 Peak Build Rating 6 | 6 6 Average Rating 5 | 4 5 On Entrance 3 | . 6 Avg Prop Armor Cover (%) . | . . Naked Turns 36 | . 36 Heaviest Build 14 | 14 14 Greatest Support 40 | 40 40 Greatest Overweight (x) 3 | . 3 Average Overweight (x) . | . . Largest Inventory Capacity 8 | 8 8 Average Capacity 7 | 6 7 Most Carried 4 | 1 4 Average Carried 1 | . 1 Final Capacity 8 | 8 5 Final Carried 4 | 1 4 Class Distribution -------------------- 100% | Mutant Dominant Class ---------------- Mutant | -10/Materials Resources | -11 -10 ----------- Run | Yrd Mat Matter Collected 278 | 245 33 Remotely . | . . Salvage Created 55 | . 55 Parts 3 | . 3 Haulers Intercepted . | . . Recyclers Shooed 2 | . 2 Parts Field Recycled . | . . Retrieved Matter . | . . Parts Self-Destructed . | . . Prevented . | . . Parts Restored . | . . Kills | -11 -10 ------- Run | Yrd Mat Combat Hostiles Destroyed 1 | . 1 Guns 1 | . 1 Classes Destroyed 2 | . 2 Watcher 1 | . 1 Grunt 1 | . 1 Best Kill Streak 1 | . 1 Combat Bots Only 1 | . 1 Max Kills in Single Turn 1 | . 1 Gunslinging . | . . Exploded . | . . Melee . | . . Uniques/NPCs Destroyed . | . . Combat | -11 -10 -------- Run | Yrd Mat Hostile Shots Fired 112 | . 112 Missed 41 | . 41 Hits 71 | . 71 Projectile 71 | . 71 Critical Strikes 1 | . 1 Damage Taken 843 | . 843 Core 251 | . 251 Absorbed by Shields . | . . Core Remaining (%) 100 | 100 . Volleys Fired 10 | . 10 Largest 2 | . 2 Hottest 40 | . 40 Shots Fired 18 | . 18 Gun 18 | . 18 Cannon . | . . Launcher . | . . Special . | . . Kinetic 18 | . 18 Thermal . | . . Explosive . | . . Electromagnetic . | . . Robot Hit Streak 3 | . 3 Robot Miss Streak 3 | . 3 Penetration Max . | . . Secondary Targets . | . . Shots Hit Robots 10 | . 10 Core Hits 2 | . 2 Critical Kills . | . . Critical Parts Destroyed . | . . Critical Strikes . | . . Melee Attacks . | . . Impact . | . . Slashing . | . . Piercing . | . . Sneak Attacks . | . . Combat Hostiles . | . . Follow-up Attacks . | . . Damage Inflicted 147 | . 147 Guns 147 | . 147 Cannons . | . . Explosions . | . . Melee . | . . Ramming . | . . Kinetic 147 | . 147 Thermal . | . . Explosive . | . . Electromagnetic . | . . Impact . | . . Slashing . | . . Piercing . | . . Highest Corruption 2 | . 2 Average Corruption 1 | . 1 Corruption Purged . | . . Corruption Blocked . | . . Overload Shots . | . . Overflow Damage . | . . Projectiles . | . . Explosions . | . . Melee . | . . Knockbacks . | . . Impact . | . . Kinetic . | . . Secondary . | . . Self-Inflicted Damage . | . . Shots . | . . Rammed 1 | . 1 Targets Rammed 1 | . 1 Kicked . | . . Crushed . | . . Highest Temperature 73 | . 73 Average Temperature 37 | . 37 Received Heat Transfer 378 | . 378 Siege Activations . | . . Martial Activations . | . . Shielding Activations . | . . Robots Disrupted . | . . Combat Hostiles . | . . Robots Corrupted . | . . Combat Hostiles . | . . Parts Fried . | . . Impact Corruptions . | . . Robots Melted . | . . Combat Hostiles . | . . Parts Melted . | . . Heat Transferred . | . . Parts Sabotaged . | . . Parts Stolen . | . . Parts Stripped . | . . Power Chain Reactions . | . . Alert | -11 -10 ------- Run | Yrd Mat Maximum Alert Level . | . . Low Security (%) 100 | 100 100 Level 1 . | . . Level 2 . | . . Level 3 . | . . Level 4 . | . . Level 5 . | . . High Security . | . . Max Security . | . . Peak Influence 112 | . 112 Initial . | . . Average 4 | . 5 Influence Increases 140 | . 140 Destroy 0b10 Robot/C 20 | . 20 Destroy 0b10 Robot/NC 5 | . 5 Destroy Leader 2 | . 2 Successful Hack 7 | . 7 Destroy Structure 1 | . 1 Lose Combat Pursuer 105 | . 105 Influence Decreases 36 | . 36 Time Decay 36 | . 36 Squads Dispatched 1 | . 1 Investigation 1 | . 1 Extermination . | . . Reinforcement . | . . Assault . | . . Garrison . | . . Intercept . | . . Searches Triggered . | . . Construction Impeded . | . . Haulers Reinforced . | . . Active Scanning Responses . | . . Cargo Convoy Interrupts . | . . Stealth | -11 -10 --------- Run | Yrd Mat Distress Signals 2 | . 2 Communications Jammed . | . . Distress Signals . | . . Times Spotted 20 | . 20 Peak Tracking Total 10 | . 10 Tactical Retreats 1 | . 1 Traps | -11 -10 ------- Run | Yrd Mat Traps Triggered 4 | . 4 Indirectly . | . . Trap Hack Attempts . | . . Triggered . | . . Disarmed . | . . Reprogrammed . | . . Reused . | . . Traps Extracted . | . . Installed . | . . Triggered . | . . Machines | -11 -10 ---------- Run | Yrd Mat Machines Disabled . | . . Max in Single Turn . | . . Machines Repaired . | . . Machines Dismantled . | . . Machines Sabotaged . | . . Overloaded Fab Kills . | . . Hacking | -11 -10 --------- Run | Yrd Mat Machines Accessed 3 | . 3 Terminals 3 | . 3 Fabricators . | . . Repair Stations . | . . Recycling Units . | . . Scanalyzers . | . . Garrison Access . | . . Total Hacks 9 | . 9 Successful 3 | . 3 Failed 6 | . 6 Catastrophic 4 | . 4 Database Lockouts . | . . Manual 7 | . 7 Terminals 9 | . 9 Fabricators . | . . Repair Stations . | . . Recycling Units . | . . Scanalyzers . | . . Garrison Access . | . . Terminal Hacks 2 | . 2 Branch Access Points 1 | . 1 Emergency Access Points 1 | . 1 Fabricator Hacks . | . . Repair Station Hacks . | . . Recycling Unit Hacks . | . . Scanalyzer . | . . Garrison Access Hacks . | . . Unauthorized Hacks 1 | . 1 Terminals 1 | . 1 Botnet 1 | . 1 Fabricators . | . . Repair Stations . | . . Recycling Units . | . . Scanalyzers . | . . Garrison Access . | . . Data Cores Recovered . | . . Used . | . . Hacking Detections 3 | . 3 Full Trace Events 2 | . 2 Feedback Events 1 | . 1 Corruption 1 | . 1 Feedback Blocked . | . . Robot Schematics Acquired . | . . Robots Built . | . . Authchips . | . . Time . | . . Total Robot Build Rating . | . . Part Schematics Acquired . | . . Parts Built . | . . Authchips . | . . Time . | . . Total Part Build Rating . | . . Part Studies Acquired . | . . Parts Repaired . | . . Time . | . . Parts Recycled . | . . Recycled Matter . | . . Retrieved Matter . | . . Retrieved Components . | . . Parts Scanalyzed . | . . Part Schematics Acquired . | . . Parts Damaged . | . . Bothacking | -11 -10 ------------ Run | Yrd Mat Used RIF Installer . | . . Robots Hacked . | . . Non-combat . | . . Combat . | . . Robot Hacks Applied . | . . Relay Couplers Released . | . . Fabnet Peak Effective % . | . . Robots Rewired . | . . Allies Hacked . | . . Hacks Repelled . | . . Allies | -11 -10 -------- Run | Yrd Mat Total Allies . | . . Largest Group . | . . Highest-Rated Group . | . . Highest-Rated Ally . | . . Total Orders . | . . Ally Attacks . | . . Total Damage . | . . Kills . | . . Allies Corrupted . | . . Allies Melted . | . . Intel | -11 -10 ------- Run | Yrd Mat Active Infowar (turns) . | . . Robot Analysis Total . | . . Derelict Logs Recovered . | . . Drone Launches . | . . Drone Recoveries . | . . Exploration | -11 -10 ------------- Run | Yrd Mat Turns Passed 488 | 83 405 Spaces Moved 330 | 49 281 Core 77 | 4 73 Treads 253 | 45 208 Legs . | . . Wheels . | . . Hover . | . . Flight . | . . Fastest Speed 50 | 50 50 Average Speed 135 | 151 132 Slowest Speed 200 | 160 200 Overloaded Moves . | . . Propulsion Burnouts . | . . Robots Hopped . | . . Potential Cave-ins . | . . Cave-ins Triggered . | . . Exploration Rate (%) 25 | 4 47 Regions Visited 1 Branch Regions . Pre-discovered Areas . | . . Known Exits Taken . | . . Unknown Exits Taken 1 | 1 . Scrap Searched . | . . Spaces Dug . | . . Terrain Destroyed . | . . Melee . | . . Projectile . | . . AOE . | . . Terrain Rammed . | . . Walls Destroyed . | . . Machines Disabled . | . . Actions | -11 -10 --------- Run | Yrd Mat Total 351 | 56 295 Wait . | . . Move 329 | 48 281 Hop . | . . Pick Up 3 | 2 1 Fast Attach 5 | 5 . Attach 1 | 1 . Detach 2 | . 2 Swap . | . . Drop . | . . Fire 10 | . 10 Melee . | . . Ram . | . . Kick . | . . Crush 1 | . 1 Escape Stasis . | . . Rewire . | . . Trap . | . . Miscellaneous . | . . Route ------- -11/Scrapyard -10/Materials (discovered 2 exits: [*Mat] / Min) History --------- Turn | Location | Event 7 | -11/Scrapyard | Discovered new exit (range 16) 84 | -11/Scrapyard | Entered Materials 313 | -10/Materials | Build established: Mutant 454 | -10/Materials | Discovered new exit (range 6) 460 | -10/Materials | Core integrity fell below 50% 478 | -10/Materials | Lost 4 parts (2n2w) 479 | -10/Materials | Identified exit to Mines 488 | -10/Materials | Core integrity fell below 20% 489 | -10/Materials | Destroyed by G-34 Mercenary with Small Laser Last Messages --------------- 00429_ Slammed into R-06 Scavenger. 00432_ W-16 Scout sends out distress signal. 00439_ Lgt. Treads destroyed. 00445_ S-10 Pest destroyed. 00447_ Lgt. Treads destroyed. 00454_ EXIT=FOUND 00456_ Triggered Shock Trap. 00456_ The floor emits a surge of raw power. 00456_ System corrupted (+1). 00479_ Connecting with Terminal... >>Access(Emergency) No emergency access doors found in local area. >>Access(Branch) Found 1 branch access point: (36,37) Mines Map updated. Feedback: System corruption (+1%). 00482_ Triggered Blade Trap. 00482_ Massive razor-sharp blades shoot up from within the floor. Map ----- +----------------------------------------------------+ | ????????????????????????????????????????????? | | ????????????????????????????????????????????? | | ????????????????????????????????????????????? | | ????????????????????????????????????????????? | | ????????????????????????????????????????????? | | ????????????????????????????????????????????? | | ????????????#############???????????????????? | | ????????????# T #???????????????????? | | ????????????# """ #???????????????????? | | ????????????# """"" / #???????????????????? | | ????????????# """"" #???????????????????? | | ????????????# """"" #???????????????????? | | ????????????# """ #????????????????#### | | ????????????# ! #????????????????# | | ????????????#######+#####????????????????# | | ????????????????# #??????????????????# % | | ????????????????# #??????????????????# | | ????????????????# ss #?????????????>????# | | ????????????????# #??????????????????# | | ????????????????# #??????????#???????# ] | | ????????????????## ##??????????# ???????? | | ?????????????????# #????????????# ?????### | | ?????????????????# #????????????# ##### | | ?????????????????# #????????????# | | ?????????????????# #????????????# | | ??####???????????# @#????????????# | | ??#!! ??????????##g ##???????????######+## | | ??#!! #######+### g #??????#????????????## | | ??#[[ #??????# ???????????# | | ??#[[ #??????# ??????????# | | ??#]] g #???????? ?????????# | | ??#]] ####### #?????????? ???????## | | ??##### #?????###g###??????######+###+### | | ??????# #?????? ????? | | ??????# #??????? g ????????????# | | ??????# #??????? ?????##+#####+## | | ??????# #??????? ?????# # ## | | ??????# #??????? ?????# T # #### | | ??????# #?????? ?????# # #??? | | ??????# #?????? ?????# + #??? | | ??????# < #??????? ?????# """ """ # #??? | | ??????# #???????##/#?????? """ """ # ###??? | | ??????### #????????# #?????? """ """ # #????? | | ????????# #??????### ###???? # #????? | | ???????## ######## #????#/######## ###### | | ???????# ###### ######## # # | | ???????# + # | | ????# * ######### # # | | ????#####+########=%= #???????# # =" | | ?????????????????###/###???# / # | +----------------------------------------------------+ Best States ------------- Heat Dissipation 25 Energy Generation 10 Energy Capacity 250 Matter Stores 300 Matter Capacity 300 Sight Range 16 Terrain Scan Density 10 Evasion (%) 50 Recoil Reduction 2 Item Schematics ----------------- None Robot Schematics ------------------ None Fabricated ------------ Nothing Repaired ---------- Nothing Studied --------- None Alien Tech Used ----------------- None Achievements -------------- None Challenges ------------ None Game ------ Seed CargoStorageKit Manual? 0 Play Time 00:05:32 Cumulative 183.1 hours Start 2026.08.30 @ 03:44:51 End 2026.08.30 @ 03:47:47 Sessions 1 Manual Loads 0 Difficulty Rogue Special Mode None Game No. 362 Rogue 362 Adventurer 0 Explorer 0 Win Type - Total 2 Types 2/0/0/0/0/0/0/0/0/0 Lore% 59 Gallery% 60 Achievement% 47 Wizard Run 0 Options --------- Layout 2 ASCII 0 Keyboard 1 Movement Arrows Keybinds 0 Fullscreen 1 Font 24/Smallcaps Map View 50x44 Zoom Use 0% Tactical HUD 1 Map Filters NONE Filters NONE Steam 1 RUN: 99f08e43-0887-499f-9c2f-27cf4ae8972a